bitfinex/quotes_SOLUSD_20240727
["timestamp","ask_amount","ask_price","bid_price","bid_amount"]
[1722113793614,16.45,183.43,183.35,4.68340101]
[1722113793811,4.3607,183.46,183.35,15.59110101]
[1722113794009,32.53,183.47,183.36,1.09046924]
[1722113794336,6.5564,183.49,183.36,1.09046924]
[1722113794509,6.5564,183.49,183.39,4.3621]
[1722113794839,6.5564,183.49,183.36,2.8295434]
[1722113794840,0.34,183.48,183.36,1.73938819]
[1722113795009,4.3611,183.44,183.36,1.73938819]
[1722113795209,32.53,183.47,183.35,4.68340101]
[1722113795210,16.45,183.41,183.35,4.68340101]
[1722113795430,32.53,183.47,183.35,4.68340101]
[1722113795729,5.69576214,183.64,183.5,10.8986]
[1722113795730,0.2923532,183.57,183.5,10.8986]
[1722113795904,0.2923532,183.57,183.5,15.2582]
[1722113796106,0.2923532,183.57,183.5,10.8986]
[1722113796413,0.2923532,183.57,183.51,1.089747]
[1722113796600,0.2923532,183.57,183.56,4.3582]
[1722113796799,0.2923532,183.57,183.54,10.8964]
[1722113797006,0.2923532,183.57,183.55,1.08945157]
[1722113797310,0.2923532,183.57,183.56,10.8956]
[1722113797733,0.2923532,183.57,183.56,75.8956]
[1722113798035,0.7923532,183.76,183.74,4.3538]
[1722113798232,0.7923532,183.76,183.74,6.0896909]
[1722113798437,0.7923532,183.76,183.75,1.73569643]
[1722113798807,0.7923532,183.76,183.7,4.3547]
[1722113799010,0.7923532,183.76,183.71,6.09057435]
[1722113799210,0.7923532,183.76,183.72,1.73597986]
[1722113799821,5.1459532,183.76,183.65,4.356]
[1722113800034,5.1459532,183.76,183.65,5.44469705]
[1722113800343,0.7923532,183.76,183.74,4.3538]
[1722113800639,0.7923532,183.76,183.73,4.354]
[1722113800930,0.7923532,183.76,183.75,1.73569643]
[1722113801506,0.7923532,183.76,183.71,10.8864]
[1722113801711,0.7923532,183.76,183.66,10.8892]
[1722113801911,0.7923532,183.76,183.67,2.8249631]
[1722113802141,0.7923532,183.76,183.67,1.08858693]
[1722113802370,0.7923532,183.76,183.49,16.45]
[1722113802371,4.354,183.74,183.6,10.8931]
[1722113802520,0.7923532,183.76,183.61,1.73701987]
[1722113802837,33.29843387,184.07,183.61,1.73701987]
[1722113802838,6.5367,183.98,183.66,20.0]
[1722113803146,0.7923532,183.94,183.87,10.8771]
[1722113803441,0.7923532,183.94,183.82,10.8797]
[1722113803737,0.7923532,183.94,183.83,2.82258895]
[1722113803914,0.7923532,183.94,183.83,1.73494108]
[1722113804238,4.3508,183.88,183.83,1.73494108]
[1722113804544,4.3503,183.9,183.83,1.73494108]
[1722113804840,4.3514,183.85,183.83,1.73494108]
[1722113805211,20.0,183.86,183.75,4.68340101]
[1722113805536,4.3533,183.77,183.75,4.68340101]
[1722113805936,4.3533,183.77,183.76,4.68340101]
[1722113806235,45.34,183.77,183.62,1.08872126]
[1722113806412,45.34,183.77,183.56,10.8951]
[1722113806413,4.3562,183.65,183.56,10.8951]
[1722113806614,30.8875,183.7,183.53,4.3588]
[1722113806833,30.8875,183.7,183.54,1.08925251]
[1722113806834,92.5075,183.7,183.54,1.08925251]
[1722113807047,12.20114568,183.79,183.55,1.0892275]
[1722113807247,45.17,183.78,183.61,10.8923]
[1722113807417,4.3538,183.75,183.62,1.08868856]
[1722113807615,0.7923532,183.94,183.61,6.251]
[1722113807838,0.7923532,183.94,183.71,4.3546]
[1722113807839,4.3522,183.82,183.71,4.3546]
[1722113808039,21.751,183.9,183.68,1.0883156]
[1722113808040,43.4097,183.83,183.68,1.0883156]
[1722113808355,4.3557,183.67,183.63,1.08868847]
[1722113808644,15.9693,183.84,183.63,1.08868847]
[1722113808645,32.53,183.81,183.63,1.08868847]
[1722113808852,34.26507294,183.81,183.51,1.08860269]
[1722113809013,4.3538,183.75,183.64,4.3562]
[1722113809215,10.8828,183.78,183.62,1.08868771]
[1722113809472,16.45,183.76,183.62,1.08885439]
[1722113809618,20.8044,183.73,183.62,1.08885439]
[1722113809815,4.3547,183.71,183.6,4.3571]
[1722113810021,24.3544,183.72,183.61,5.44576227]
[1722113810221,16.45,183.71,183.62,1.08886234]
[1722113810527,16.45,183.71,183.59,10.8932]
[1722113810528,24.355,183.7,183.63,1.08895053]
[1722113810713,24.355,183.7,183.61,1.08895114]
[1722113810920,16.45,183.69,183.61,1.08895114]
[1722113811237,16.45,183.69,183.5,6.251]
[1722113811238,1.73507294,183.77,183.6,1.08915045]
[1722113811545,16.45,183.82,183.72,4.3543]
[1722113811719,39.0616,183.86,183.71,10.8862]
[1722113811720,20.8023,183.81,183.73,1.08828244]
[1722113812058,4.353,183.78,183.66,15.2449]
[1722113812230,20.8027,183.8,183.67,1.08847212]
[1722113812419,39.0616,183.86,183.71,4.3546]
[1722113812621,16.45,183.82,183.72,1.08828145]
[1722113812822,6.08647294,183.85,183.74,4.3537]
[1722113813035,6.08647294,183.85,183.75,1.08826047]
[1722113813350,1.73507294,183.85,183.75,1.08826047]
[1722113813564,1.73507294,183.85,183.73,15.239]
[1722113813845,1.73507294,183.85,183.68,10.888]
[1722113814043,4.3525,183.8,183.69,1.08831182]
[1722113814343,4.3522,183.82,183.69,1.08831182]
[1722113814514,1.73507294,183.85,183.72,15.2399]
[1722113814718,1.73507294,183.85,183.7,4.3547]
[1722113814940,16.45,183.84,183.68,15.2434]
[1722113815151,4.3528,183.79,183.68,16.33189667]
[1722113815330,4.353,183.78,183.69,1.08845945]
[1722113815731,38.18507294,183.84,183.66,4.3556]
[1722113815949,4.3537,183.75,183.64,15.2468]
[1722113816245,32.53,183.8,183.65,1.08863462]
[1722113816246,20.0,183.79,183.65,1.08863462]
[1722113816453,4.3535,183.76,183.65,5.44453462]
[1722113816629,0.34,183.78,183.64,10.8907]
[1722113817132,2.07507294,183.78,183.64,10.8907]
[1722113817328,4.3542,183.73,183.64,10.8907]
[1722113817532,20.0,183.77,183.64,10.8907]
[1722113817732,1.90507294,183.76,183.65,1.08885022]
[1722113817918,32.53,183.74,183.59,10.8933]
[1722113818123,32.53,183.74,183.59,15.2507]
[1722113818124,83.35507294,183.73,183.59,15.2507]
[1722113818318,4.3554,183.68,183.59,15.2507]
[1722113818725,20.0,183.71,183.59,15.2507]
[1722113818927,0.34,183.7,183.59,15.2507]
[1722113819123,0.34,183.7,183.53,1.08885022]
[1722113819331,32.53,183.68,183.55,10.8961]
[1722113819531,20.17,183.67,183.55,10.8961]
[1722113819730,21.90507294,183.67,183.55,10.8961]
[1722113819943,1.90507294,183.66,183.55,1.08940931]
[1722113820140,1.90507294,183.66,183.42,28.1503]
[1722113820141,1.90507294,183.66,183.53,10.8969]
[1722113820339,4.3569,183.62,183.53,10.8969]
[1722113820542,0.17,183.63,183.49,10.8996]
[1722113820826,4.3584,183.55,183.46,1.08969942]
[1722113821149,50.71507294,183.62,183.47,4.3603]
[1722113821335,4.3582,183.56,183.45,15.2624]
[1722113821542,4.3584,183.56,183.46,1.08987951]
[1722113821729,27.3432,183.6,183.46,1.08987951]
[1722113821730,20.0,183.59,183.46,1.08987951]
[1722113821924,4.3592,183.52,183.42,5.45121622]
[1722113822134,4.3588,183.54,183.41,10.9044]
[1722113822433,0.17,183.53,183.43,4.3612]
[1722113822634,18.35507294,183.53,183.41,10.9044]
[1722113822928,4.3599,183.49,183.41,8.4044]
[1722113823345,0.17,183.48,183.38,4.3623]
[1722113823876,0.17,183.48,183.37,10.9067]
[1722113823877,4.3604,183.47,183.39,1.09042585]
[1722113824044,32.53,183.43,183.34,4.3632]
[1722113824381,4.363,183.36,183.15,16.94027349]
[1722113824549,22.07507294,183.42,183.28,1.09067349]
[1722113824872,22.07507294,183.42,183.31,4.3641]
[1722113825170,22.07507294,183.42,183.3,11.7029532]
[1722113825336,45.0,183.41,183.3,0.7923532]
[1722113825531,1.90507294,183.4,183.3,0.7923532]
[1722113825736,1.90507294,183.39,183.3,0.7923532]
[1722113825957,13.15560728,183.73,183.36,15.8496]
[1722113826267,32.53,183.62,183.49,10.8992]
[1722113826567,32.53,183.62,183.47,10.9007]
[1722113826938,4.3578,183.58,183.47,10.9007]
[1722113827133,4.3579,183.58,183.48,4.36]
[1722113827396,4.3579,183.58,183.41,21.8084]
[1722113827397,43.4221,183.62,183.43,10.9032]
[1722113827537,16.45,183.61,183.45,4.3608]
[1722113827740,43.4193,183.67,183.46,1.08991533]
[1722113827965,43.4193,183.67,183.48,4.36]
[1722113827966,4.3576,183.59,183.48,4.36]
[1722113828165,4.3576,183.59,183.41,21.8084]
[1722113828166,10.8893,183.67,183.5,10.8991]
[1722113828461,16.45,183.64,183.44,1.08966302]
[1722113828635,48.98,183.64,183.44,1.08966302]
[1722113828841,16.45,183.62,183.44,1.08966302]
[1722113829045,4.358,183.57,183.44,1.08966302]
[1722113829358,0.99138834,183.48,183.44,1.08966302]
[1722113829559,0.99138834,183.48,183.45,1.0898855]
[1722113829876,0.99138834,183.48,183.43,1.09002322]
[1722113830080,0.99138834,183.48,183.42,11.99351415]
[1722113830241,0.99138834,183.48,183.43,1.09011415]
[1722113830550,0.99138834,183.48,183.42,10.9034]
[1722113831065,0.99138834,183.48,183.38,10.9062]
[1722113831266,0.34,183.47,183.38,15.2685]
[1722113831572,0.34,183.47,183.34,10.9085]
[1722113831742,0.34,183.47,183.27,21.6791]
[1722113831743,4.3623,183.39,183.29,15.2758]
[1722113832064,0.99138834,183.43,183.32,10.9094]
[1722113832256,0.99138834,183.43,183.33,1.09079153]
[1722113832439,0.99138834,183.43,183.35,10.9075]
[1722113832643,0.99138834,183.43,183.36,5.45345388]
[1722113832861,0.99138834,183.43,183.37,4.3626]
[1722113833077,0.99138834,183.43,183.36,1.09065388]
[1722113833371,0.99138834,183.43,183.36,1.09055106]
[1722113833744,37.44138834,183.43,183.35,10.9075]
[1722113834162,37.44138834,183.43,183.35,11.99814233]
[1722113834355,37.44138834,183.43,183.32,4.3638]
[1722113834559,37.44138834,183.43,183.33,5.45430072]
[1722113834763,41.80278834,183.43,183.33,5.45430072]
[1722113835049,0.99138834,183.43,183.33,1.09070072]
[1722113835364,0.99138834,183.43,183.42,10.9039]
[1722113835747,38.5608,183.56,183.42,15.2652]
[1722113835946,20.8095,183.51,183.42,10.9039]
[1722113836172,4.3595,183.51,183.42,10.9039]
[1722113836473,4.3597,183.5,183.38,10.9062]
[1722113836664,4.36,183.49,183.39,5.45238356]
[1722113836862,10.8971,183.54,183.4,5.45221938]
[1722113837067,16.45,183.52,183.4,5.45221938]
[1722113837263,16.45,183.45,183.38,1.73919849]
[1722113837466,16.45,183.45,183.33,10.9089]
[1722113837785,0.99143004,183.39,183.34,4.3632]
[1722113837983,0.99143004,183.39,183.34,4.3633]
[1722113838154,0.99143004,183.39,183.3,0.7923532]
[1722113838155,0.99143004,183.39,183.35,1.73948306]
[1722113838354,20.9825,183.38,183.35,1.73948306]
[1722113838669,20.9828,183.37,183.3,0.7923532]
[1722113838879,16.45,183.35,183.3,0.7923532]
[1722113839177,16.45,183.34,183.3,0.7923532]
[1722113839477,0.17,183.36,183.3,0.7923532]
[1722113839771,36.79,183.37,183.3,0.7923532]
[1722113839961,16.45,183.32,183.3,0.7923532]
[1722113840363,20.34,183.37,183.3,0.7923532]
[1722113840561,36.45,183.37,183.3,0.7923532]
[1722113840767,0.99143004,183.31,183.3,0.7923532]
[1722113840951,0.99143004,183.31,183.3,5.1567532]
[1722113841275,0.99143004,183.31,183.3,2.53231075]
[1722113841671,0.99143004,183.31,183.3,3.62305569]
[1722113841865,0.99143004,183.31,183.3,3.62307507]
[1722113842418,0.99143004,183.31,183.3,0.7923532]
[1722113842674,16.45,183.23,183.13,10.921]
[1722113842877,4.3667,183.21,183.11,0.7923532]
[1722113843051,48.98,183.19,183.11,0.7923532]
[1722113843251,16.45,183.17,183.01,10.9283]
[1722113843448,32.53,183.13,183.04,10.9261]
[1722113843673,20.0,183.16,183.04,12.66852908]
[1722113843887,0.17,183.17,183.08,10.924]
[1722113844059,0.17,183.18,183.09,4.3692]
[1722113844060,20.0,183.18,183.09,4.3692]
[1722113844401,20.0,183.18,183.09,1.74195324]
[1722113844402,0.17,183.17,183.09,1.74195324]
[1722113844852,16.45,183.11,182.87,6.0193]
[1722113845054,32.53,183.14,182.94,2.83626499]
[1722113845279,32.53,183.14,182.87,26.0193]
[1722113845280,65.17,183.13,182.97,10.9302]
[1722113845460,4.3692,183.1,182.97,10.9302]
[1722113845783,0.17,183.09,182.97,10.9302]
[1722113845960,0.17,183.09,183.0,4.3715]
[1722113846174,0.17,183.09,182.97,10.9302]
[1722113846375,0.17,183.09,182.95,1.74328625]
[1722113846376,4.3701,183.06,182.96,4.3725]
[1722113846579,4.3718,182.99,182.95,1.74328625]
[1722113846784,20.0,183.01,182.94,4.3728]
[1722113846970,20.0,183.01,182.93,11.7249532]
[1722113847167,0.17,183.05,183.03,4.3707]
[1722113847473,0.17,183.05,183.01,10.928]
[1722113847474,4.368,183.15,183.01,10.928]
[1722113847661,38.5374,183.18,183.05,10.9257]
[1722113848001,38.5374,183.18,183.09,4.3694]
[1722113848163,38.5374,183.18,183.02,24.68986503]
[1722113848164,54.9874,183.18,183.02,1.74261949]
[1722113848364,0.94994847,183.27,183.02,1.74261949]
[1722113848365,0.94994847,183.27,183.24,10.9141]
[1722113848684,16.45,183.49,183.34,10.9085]
[1722113848887,16.45,183.49,183.25,47.83173617]
[1722113848888,36.8612,183.44,183.32,4.3637]
[1722113849088,32.5,183.44,183.33,4.3635]
[1722113849389,32.5,183.44,183.29,10.9116]
[1722113849390,4.362,183.41,183.29,10.9116]
[1722113849606,32.5,183.48,183.29,10.9116]
[1722113849763,32.5,183.48,183.3,2.83073809]
[1722113849971,4.3605,183.47,183.34,4.3634]
[1722113850266,4.3612,183.44,183.33,15.2726]
[1722113850465,32.5,183.48,183.3,6.10415755]
[1722113850764,4.3609,183.45,183.33,15.2724]
[1722113850989,32.5,183.48,183.33,10.9088]
[1722113851191,32.5,183.48,183.37,4.3626]
[1722113851369,32.5,183.48,183.38,4.3624]
[1722113851577,36.8602,183.48,183.37,10.9066]
[1722113851777,4.3605,183.47,183.37,10.9066]
[1722113851976,32.5,183.48,183.37,10.9066]
[1722113852182,36.8602,183.48,183.37,15.2692]
[1722113852389,32.5,183.48,183.37,10.9066]
[1722113852571,32.5,183.48,183.35,4.3631]
[1722113852572,4.3605,183.47,183.35,4.3631]
[1722113852772,48.95,183.48,183.37,4.3626]
[1722113853082,4.3597,183.5,183.39,4.3622]
[1722113853282,6.4151,183.52,183.3,1.09041734]
[1722113853586,4.361,183.45,183.34,4.3633]
[1722113853788,17.3131,183.52,183.31,12.65006263]
[1722113853992,4.3599,183.49,183.36,10.9074]
[1722113854168,4.3595,183.51,183.39,4.3621]
[1722113854510,32.5,183.47,183.31,10.91]
[1722113854665,32.5,183.47,183.35,4.3631]
[1722113854666,36.8604,183.47,183.35,4.3631]
[1722113854874,32.5,183.47,183.36,5.45341629]
[1722113855080,36.8604,183.47,183.36,4.3628]
[1722113855286,6.4151,183.52,183.35,10.9078]
[1722113855287,4.3599,183.49,183.38,4.3625]
[1722113855489,4.3599,183.49,183.39,5.45270071]
[1722113855490,4.36,183.49,183.39,5.45270071]
[1722113855682,20.0,183.51,183.36,1.09030096]
[1722113856001,20.0,183.51,183.37,1.73929334]
[1722113856199,27.3499,183.49,183.29,1.0905019]
[1722113856382,48.95,183.47,183.3,1.73995755]
[1722113856581,20.0,183.46,183.31,1.09087206]
[1722113856980,36.45,183.46,183.31,1.09087206]
[1722113857202,4.3621,183.4,183.3,1.73995755]
[1722113857610,36.45,183.46,183.38,10.9061]
[1722113857779,4.3596,183.5,183.39,1.09033534]
[1722113857986,32.5,183.54,183.4,4.3618]
[1722113858302,4.3619,183.41,183.32,10.9097]
[1722113858609,4.3616,183.42,183.32,6.10356772]
[1722113858813,4.362,183.41,183.32,1.73976772]
[1722113859688,20.0,183.46,183.43,4.3611]
[1722113859881,32.5,183.54,183.4,10.9048]
[1722113860080,5.69448792,183.53,183.38,4.3624]
[1722113860280,5.69448792,183.53,183.35,10.9075]
[1722113860281,4.36,183.49,183.37,4.3627]
[1722113860480,26.1339,183.56,183.37,4.3625]
[1722113860481,15.2381,183.56,183.37,4.3625]
[1722113860689,32.5,183.51,183.38,4.3623]
[1722113860891,4.36,183.49,183.37,1.09037993]
[1722113861101,32.47,183.51,183.38,5.4527451]
[1722113861296,32.47,183.51,183.39,10.9055]
[1722113861504,0.7923532,183.57,183.4,2.82917033]
[1722113861713,4.3584,183.56,183.44,4.3609]
[1722113862020,0.7923532,183.57,183.45,2.82841713]
[1722113862186,4.359,183.53,183.45,1.73853485]
[1722113862684,0.7923532,183.57,183.45,1.73853485]
[1722113862890,32.47,183.54,183.41,4.3617]
[1722113863086,32.47,183.54,183.41,10.9039]
[1722113863385,20.0,183.53,183.41,10.9039]
[1722113863913,4.3597,183.5,183.41,10.9039]
[1722113864111,4.6993,183.52,183.41,10.9039]
[1722113864415,4.3602,183.48,183.38,4.3623]
[1722113864595,0.34,183.52,183.36,15.2698]
[1722113864596,0.17,183.47,183.36,15.2698]
[1722113865012,0.17,183.47,183.37,4.3626]
[1722113865310,20.0,183.47,183.38,4.3624]
[1722113865484,20.0,183.47,183.37,1.09040066]
[1722113865485,24.3604,183.47,183.36,10.907]
[1722113865690,0.17,183.46,183.36,10.907]
[1722113865917,4.3611,183.44,183.33,4.3635]
[1722113866093,4.3611,183.44,183.33,6.10317283]
[1722113866411,4.3616,183.42,183.33,1.73967283]
[1722113866590,0.34,183.41,183.33,1.73967283]
[1722113866789,4.3633,183.35,183.33,1.73967283]
[1722113867317,20.0,183.35,183.28,4.3648]
[1722113867522,0.17,183.4,183.27,1.09104295]
[1722113867833,0.17,183.41,183.3,4.3642]
[1722113868116,0.17,183.41,183.2,37.2443]
[1722113868117,4.3624,183.39,183.24,10.914]
[1722113868291,0.34,183.41,183.21,1.09084169]
[1722113868492,4.3625,183.38,183.27,15.2773]
[1722113868706,0.17,183.37,183.27,10.9124]
[1722113868903,4.3631,183.36,183.27,10.4124]
[1722113869215,4.3635,183.34,183.25,1.7404323]
[1722113869599,20.17,183.35,183.25,1.7404323]
[1722113869802,0.17,183.34,183.25,1.7404323]
[1722113870113,0.17,183.34,183.21,4.3664]
[1722113870305,4.3642,183.31,183.18,10.9178]
[1722113870609,4.3644,183.31,183.2,4.3666]
[1722113870808,4.5344,183.3,183.21,4.3665]
[1722113871011,0.17,183.34,183.19,1.74100234]
[1722113871210,0.17,183.34,183.24,4.3658]
[1722113871413,20.0,183.35,183.25,1.0912935]
[1722113871599,32.47,183.42,183.26,1.74033733]
[1722113871805,4.3623,183.39,183.3,15.2748]
[1722113872011,4.3616,183.42,183.3,10.9106]
[1722113872195,4.3612,183.44,183.3,12.65055755]
[1722113872517,75.8403,183.48,183.33,4.3635]
[1722113873017,75.8403,183.48,183.31,1.73986263]
[1722113873018,16.45,183.42,183.31,1.73986263]
[1722113873220,16.45,183.44,183.31,1.73986263]
[1722113873519,2.21387899,183.53,183.31,1.73986263]
[1722113873819,6.0934,183.66,183.55,4.3583]
[1722113874112,4.3561,183.65,183.55,4.3583]
[1722113874311,6.0934,183.66,183.56,1.08938132]
[1722113874312,4.3564,183.64,183.56,1.08938132]
[1722113874517,36.8272,183.61,183.49,10.8994]
[1722113874702,32.47,183.61,183.52,10.8975]
[1722113875012,32.47,183.61,183.52,12.63537173]
[1722113875220,36.8271,183.61,183.52,12.63537173]
[1722113875405,36.8271,183.61,183.52,1.73787173]
[1722113875406,32.47,183.61,183.52,1.73787173]
[1722113875818,36.8271,183.61,183.52,1.73787173]
[1722113875998,32.47,183.61,183.53,4.3588]
[1722113876313,32.47,183.61,183.53,7.1859799]
[1722113876518,4.3564,183.64,183.54,4.3585]
[1722113876813,10.8862,183.72,183.54,4.3585]
[1722113876814,10.8862,183.72,183.55,6.09578768]
[1722113877015,10.8862,183.72,183.56,1.73749302]
[1722113877216,4.3566,183.63,183.56,1.73749302]
[1722113877422,16.45,183.69,183.56,1.73749302]
[1722113877814,4.3562,183.65,183.56,1.73749302]
[1722113878227,4.3558,183.67,183.56,1.73749302]
[1722113878531,20.0,183.66,183.56,1.73749302]
[1722113878704,4.3561,183.65,183.56,1.73749302]
[1722113878899,4.3571,183.61,183.56,1.73749302]
[1722113879130,20.0,183.6,183.56,1.73749302]
[1722113879631,20.0,183.62,183.56,1.73749302]
[1722113880003,36.4919,183.7,183.56,1.73749302]
[1722113880203,36.8248,183.71,183.56,2.82699199]
[1722113880502,32.47,183.71,183.56,2.82699199]
[1722113881008,16.45,183.7,183.56,1.73749302]
[1722113881311,4.3568,183.62,183.56,1.73749302]
[1722113881622,16.45,183.62,183.56,1.73749302]
[1722113881931,20.0,183.61,183.54,4.3586]
[1722113882111,20.0,183.62,183.56,4.3582]
[1722113882298,20.0,183.64,183.56,4.3582]
[1722113882718,36.8247,183.71,183.56,7.18497496]
[1722113883116,4.355,183.7,183.56,7.18497496]
[1722113883438,48.92,183.71,183.56,52.18497496]
[1722113884139,48.92,183.71,183.56,6.09569302]
[1722113884313,48.92,183.71,183.56,51.09569302]
[1722113884954,4.3551,183.7,183.56,51.09569302]
[1722113885234,4.3554,183.68,183.56,6.09569302]
[1722113885414,36.45,183.67,183.56,6.09569302]
[1722113885616,24.3558,183.67,183.56,6.09569302]
[1722113886039,20.0,183.67,183.56,6.09569302]
[1722113886540,36.45,183.67,183.56,6.09569302]
[1722113886841,48.92,183.65,183.56,1.73749302]
[1722113887044,4.357,183.62,183.56,1.73749302]
[1722113887244,20.0,183.61,183.56,1.73749302]
[1722113888132,4.3574,183.6,183.56,1.73749302]
[1722113888334,20.0,183.59,183.56,1.73749302]
[1722113888537,20.0,183.59,183.53,10.8968]
[1722113888839,4.3571,183.61,183.53,10.8968]
[1722113889041,20.0,183.6,183.53,10.8968]
[1722113889342,20.0,183.6,183.52,4.3591]
[1722113889844,24.3573,183.6,183.49,10.8995]
[1722113890051,24.3573,183.6,183.5,1.73806114]
[1722113890344,24.3573,183.6,183.51,4.3594]
[1722113890843,20.0,183.6,183.51,4.3594]
[1722113891046,16.45,183.62,183.5,6.09766114]
[1722113891252,36.45,183.61,183.5,1.73806114]
[1722113891554,4.3583,183.56,183.46,4.3606]
[1722113891752,4.3589,183.54,183.46,1.73844009]
[1722113892048,36.45,183.56,183.46,1.73844009]
[1722113892049,36.62,183.55,183.46,1.73844009]
[1722113892347,4.3593,183.52,183.46,1.73844009]
[1722113892553,4.3593,183.52,183.28,2.17538191]
[1722113892554,4.3594,183.52,183.36,1.09006766]
[1722113892723,4.3594,183.51,183.4,10.9049]
[1722113892928,20.0,183.51,183.4,12.64390883]
[1722113893435,36.45,183.51,183.4,12.64390883]
[1722113893626,24.3596,183.51,183.4,12.64390883]
[1722113893958,32.47,183.53,183.47,4.3603]
[1722113894257,11.6875532,183.57,183.42,11.99351285]
[1722113894449,11.6875532,183.57,183.43,1.73872441]
[1722113894664,4.3601,183.48,183.38,11.99607965]
[1722113894837,4.3601,183.48,183.4,4.362]
[1722113895034,4.3594,183.51,183.42,4.3615]
[1722113895232,4.3594,183.51,183.41,10.9042]
[1722113895233,16.45,183.51,183.41,10.9042]
[1722113895452,4.3607,183.46,183.4,1.73900883]
[1722113895635,4.3607,183.46,183.37,10.9065]
[1722113895942,36.62,183.47,183.37,15.2692]
[1722113896144,40.9804,183.47,183.38,4.3625]
[1722113896340,40.9804,183.47,183.37,10.9065]
[1722113896542,40.9804,183.47,183.4,10.9047]
[1722113896543,20.0,183.47,183.4,10.9047]
[1722113896746,32.47,183.48,183.4,10.9047]
[1722113896953,10.896,183.56,183.43,4.3612]
[1722113896954,4.3591,183.53,183.43,4.3612]
[1722113897160,4.3587,183.54,183.45,4.3607]
[1722113897459,6.4554,183.58,183.43,10.903]
[1722113897636,4.3593,183.52,183.43,15.2642]
[1722113897841,4.3594,183.51,183.43,15.2642]
[1722113898157,17.2423532,183.57,183.39,10.9054]
[1722113898158,16.45,183.52,183.39,10.9054]
[1722113898362,32.47,183.53,183.42,10.9037]
[1722113898363,20.0,183.51,183.42,10.9037]
[1722113898549,24.3592,183.52,183.44,4.361]
[1722113898761,4.3598,183.5,183.42,10.9037]
[1722113898947,16.45,183.51,183.42,15.2652]
[1722113899271,0.17,183.5,183.42,10.9037]
[1722113899475,20.17,183.52,183.43,1.09023783]
[1722113899657,20.17,183.52,183.42,10.9037]
[1722113899658,20.0,183.52,183.42,10.9037]
[1722113899971,16.45,183.51,183.43,4.3613]
[1722113900159,16.45,183.51,183.4,1.73900883]
[1722113900464,0.7923532,183.57,183.41,1.09033546]
[1722113900647,0.7923532,183.57,183.34,21.8168]
[1722113900648,16.45,183.56,183.47,10.9009]
[1722113900848,20.7923532,183.57,183.47,10.9009]
[1722113900849,20.7923532,183.57,183.48,1.08994688]
[1722113901056,0.7923532,183.57,183.5,10.8988]
[1722113901773,16.45,183.56,183.45,10.9017]
[1722113901967,16.45,183.56,183.37,1.08979676]
[1722113901968,4.3594,183.51,183.41,15.266]
[1722113902153,53.2791,183.53,183.44,4.361]
[1722113902343,36.79,183.52,183.43,4.3612]
[1722113902551,41.1494,183.52,183.43,4.3611]
[1722113902871,32.47,183.53,183.43,4.3611]
[1722113902872,32.47,183.53,183.43,1.73872441]
[1722113903244,36.45,183.52,183.43,1.73872441]
[1722113903461,32.47,183.47,183.35,1.09025854]
[1722113903662,1.72018471,183.46,183.44,4.3609]
[1722113903845,1.72018471,183.46,183.42,4.3615]
[1722113904053,1.72018471,183.46,183.43,4.3612]
[1722113904260,1.72018471,183.46,183.42,4.3615]
[1722113904979,1.72018471,183.46,183.44,4.3609]
[1722113905473,1.72018471,183.46,183.45,1.089999]
[1722113905652,1.72018471,183.46,183.44,4.3609]
[1722113905847,1.72018471,183.46,183.45,1.0900302]
[1722113906051,1.72018471,183.46,183.44,4.3609]
[1722113906877,1.72018471,183.46,183.45,1.09001479]
[1722113907069,0.7923532,183.57,183.53,10.8968]
[1722113907275,0.7923532,183.57,183.56,4.3582]
[1722113907658,0.7923532,183.57,183.34,18.56517463]